bitfinex/quotes_ETHUSD_20251025
["timestamp","ask_amount","ask_price","bid_price","bid_amount"]
[1761359740850,0.3584,3930.7,3930.6,0.002]
[1761359742586,0.3584,3930.7,3930.6,2.54614084]
[1761359742787,0.3584,3930.7,3930.6,0.002]
[1761359743281,3.2,3930.8,3930.6,0.002]
[1761359743487,0.3584,3930.7,3930.6,0.002]
[1761359746081,3.2,3930.8,3930.6,0.002]
[1761359746280,0.8807136,3930.7,3930.6,0.002]
[1761359748466,0.4856,3930.7,3930.6,0.002]
[1761359749280,0.1272,3930.7,3930.6,0.002]
[1761359751785,0.1272,3930.7,3930.6,2.54614084]
[1761359756397,0.4856,3930.7,3930.6,0.002]
[1761359763711,3.02967611,3930.7,3930.6,0.002]
[1761359763991,1.4393813,3930.7,3930.6,0.002]
[1761359764194,0.58750342,3930.7,3930.6,0.002]
[1761359775890,0.4856,3930.7,3930.6,0.002]
[1761359781424,0.1272,3930.7,3930.6,2.54614084]
[1761359781624,0.1272,3930.7,3930.6,0.4616]
[1761359781625,3.3232,3930.7,3930.6,0.4616]
[1761359782006,3.3232,3930.7,3930.6,3.00574084]
[1761359782321,3.3232,3930.7,3930.6,0.4616]
[1761359784121,3.3232,3930.7,3930.6,3.00574084]
[1761359784897,3.3232,3930.7,3930.6,0.4616]
[1761359785229,3.3232,3930.7,3930.6,3.00574084]
[1761359786022,1.37377157,3932.4,3930.7,2.5440761]
[1761359786023,0.3584,3931.4,3930.7,2.5440761]
[1761359786328,0.1272,3930.9,3930.7,2.5440761]
[1761359786632,3.195,3930.8,3930.7,2.5440761]
[1761359787228,3.195,3930.8,3930.7,3.30826226]
[1761359788033,3.195,3930.8,3930.7,3.76786226]
[1761359789329,3.195,3930.8,3930.7,3.30826226]
[1761359789534,0.1272,3930.9,3930.8,2.54401139]
[1761359789698,3.3222,3930.9,3930.8,3.00361139]
[1761359790206,3.3222,3930.9,3930.8,3.76779755]
[1761359792620,3.3222,3930.9,3930.8,1.22378616]
[1761359792816,3.3222,3930.9,3930.8,3.76779755]
[1761359793218,3.195,3930.9,3930.8,3.76779755]
[1761359796625,3.194,3930.9,3930.8,3.76779755]
[1761359798632,3.194,3930.9,3930.8,3.30819755]
[1761359799034,3.194,3930.9,3930.8,3.75429755]
[1761359799344,3.194,3930.9,3930.8,3.30819755]
[1761359813252,3.194,3930.9,3930.8,3.75429755]
[1761359815180,3.194,3930.9,3930.8,3.75629755]
[1761359818464,3.194,3930.9,3930.8,4.86373021]
[1761359825826,3.194,3930.9,3930.8,4.41763021]
[1761359827093,1.7727,3931.9,3930.8,4.41763021]
[1761359827094,0.2175,3931.9,3930.9,3.05078192]
[1761359827432,0.357,3932.0,3931.7,2.54342905]
[1761359827592,0.001,3932.2,3931.7,6.29846132]
[1761359827593,2.152,3931.8,3931.7,6.29846132]
[1761359827793,0.001,3931.8,3931.7,7.59241762]
[1761359828325,0.001,3931.8,3931.7,8.31929762]
[1761359833148,0.001,3931.8,3931.7,7.88409762]
[1761359833328,0.3553,3931.8,3931.7,0.22]
[1761359833523,0.3553,3931.8,3931.7,2.76342905]
[1761359834044,0.3553,3931.8,3931.7,0.22]
[1761359838846,0.3553,3931.8,3931.3,2.54367412]
[1761359839418,0.3553,3931.8,3930.9,2.54394667]
[1761359839626,0.66767898,3931.8,3931.2,3.30775497]
[1761359839826,0.66767898,3931.8,3931.2,0.76406549]
[1761359840131,0.3543,3931.7,3931.3,2.54367679]
[1761359840352,3.193,3931.6,3931.3,2.54367679]
[1761359840749,0.3543,3931.5,3931.3,2.54367679]
[1761359841053,0.3543,3931.5,3931.2,3.30781391]
[1761359841624,0.3543,3931.5,3931.3,2.54366662]
[1761359843023,0.3543,3931.5,3931.2,0.76406549]
[1761359843024,0.3543,3931.5,3931.4,2.54362313]
[1761359843228,0.4815,3931.5,3931.4,2.54362313]
[1761359843624,0.4815,3931.5,3931.2,0.76406549]
[1761359844225,0.3543,3931.4,3931.2,3.30775893]
[1761359845161,0.3543,3931.4,3931.2,0.76406549]
[1761359845550,0.3543,3931.4,3931.2,3.3077675]
[1761359846765,0.3543,3931.4,3931.3,2.54368783]
[1761359848465,0.1272,3931.5,3931.4,2.54362313]
[1761359852264,3.193,3931.6,3931.5,2.54355843]
[1761359852464,3.3202,3931.6,3931.5,2.54355843]
[1761359853071,3.193,3931.6,3931.5,2.54355843]
[1761359857668,3.193,3931.6,3931.4,3.30762638]
[1761359859957,3.5448,3931.6,3931.4,3.30762638]
[1761359862505,3.193,3931.6,3931.4,3.30762638]
[1761359862692,0.3518,3931.5,3931.4,3.30762638]
[1761359863009,0.3518,3931.5,3931.4,0.76401684]
[1761359863188,3.193,3931.6,3931.4,0.76401684]
[1761359863506,3.5448,3931.6,3931.4,0.76401684]
[1761359867778,3.5448,3931.6,3931.4,0.76601684]
[1761359871795,3.5448,3931.6,3931.4,0.002]
[1761359880642,3.193,3931.6,3931.4,0.002]
[1761359880850,0.81112,3931.5,3931.4,0.002]
[1761359882429,3.22747843,3931.5,3931.4,0.002]
[1761359882612,4.78267843,3931.5,3931.4,0.002]
[1761359892545,4.90987843,3931.5,3931.4,0.002]
[1761359906580,9.38446747,3931.5,3931.4,0.002]
[1761359907038,9.48638076,3931.5,3931.4,0.002]
[1761359907744,10.17189841,3931.5,3931.4,0.002]
[1761359908539,9.48638076,3931.5,3931.4,0.002]
[1761359909259,10.40066892,3931.5,3931.4,0.002]
[1761359912363,9.48638076,3931.5,3931.4,0.002]
[1761359914366,9.99326076,3931.5,3931.4,0.002]
[1761359914766,11.36703233,3931.5,3931.4,0.002]
[1761359915140,9.99326076,3931.5,3931.4,0.002]
[1761359918549,12.67026076,3931.5,3931.4,0.002]
[1761359930705,15.66024552,3931.5,3931.4,0.002]
[1761359932703,18.94301709,3931.5,3931.4,0.002]
[1761359937205,17.56924552,3931.5,3931.4,0.002]
[1761359942421,14.89224552,3931.5,3931.4,0.002]
[1761359951313,10.80815862,3931.5,3931.4,0.002]
[1761359951918,11.15995862,3931.5,3931.4,0.002]
[1761359953523,10.80815862,3931.5,3931.4,0.002]
[1761359954143,6.56899172,3931.5,3931.4,0.002]
[1761359954332,10.30127862,3931.5,3931.4,0.4392]
[1761359956450,10.30127862,3931.5,3931.4,0.002]
[1761359958262,9.86724533,3931.5,3931.4,0.4392]
[1761359959218,9.59704533,3931.5,3931.4,0.4392]
[1761359959618,11.15224533,3931.5,3931.4,0.4392]
[1761359959917,11.83838105,3931.5,3931.4,0.4392]
[1761359961319,11.15224533,3931.5,3931.4,0.4392]
[1761359962467,7.41995843,3931.5,3931.4,0.4392]
[1761359970564,11.15224533,3931.5,3931.4,0.4392]
[1761359975068,7.41995843,3931.5,3931.4,0.4392]
[1761359997112,7.41995843,3931.5,3931.4,0.002]
[1761360000123,7.41995843,3931.5,3931.4,0.4563]
[1761360001193,4.8764,3931.5,3931.4,0.4563]
[1761360001521,3.3212,3931.5,3931.4,0.4563]
[1761360007735,3.3212,3931.5,3931.4,0.77637032]
[1761360008093,3.3212,3931.5,3931.4,0.4563]
[1761360009029,3.192,3931.5,3931.4,0.4563]
[1761360009227,3.192,3931.5,3931.4,1.22032657]
[1761360009397,3.192,3931.5,3931.4,3.7639497]
[1761360013503,3.193,3931.8,3931.6,2.54343565]
[1761360013744,3.193,3931.8,3931.7,0.63073854]
[1761360014034,3.193,3931.8,3931.7,1.05933854]
[1761360014843,3.193,3931.8,3931.7,0.63073854]
[1761360015044,3.193,3931.8,3931.7,1.05933854]
[1761360016842,3.193,3931.8,3931.7,0.63073854]
[1761360017435,3.193,3931.8,3931.7,1.05933854]
[1761360023159,3.193,3931.8,3931.7,2.97202905]
[1761360029081,3.193,3931.8,3931.7,3.09922905]
[1761360029235,3.193,3931.8,3931.7,3.12466334]
[1761360029431,3.193,3931.8,3931.7,3.88860625]
[1761360031677,3.193,3931.8,3931.7,3.86317196]
[1761360032881,0.001,3931.8,3931.7,3.86317196]
[1761360036367,0.001,3931.8,3931.7,5.27078838]
[1761360042263,0.001,3931.8,3931.7,5.77766838]
[1761360042995,0.001,3931.8,3931.7,9.88290432]
[1761360047274,0.001,3931.8,3931.7,11.43810432]
[1761360047516,0.001,3931.8,3931.7,10.52386838]
[1761360048179,0.001,3931.8,3931.7,11.89403496]
[1761360050206,0.001,3931.8,3931.7,10.52386838]
[1761360050710,0.001,3931.8,3931.7,14.25041277]
[1761360053488,0.001,3931.8,3931.7,15.62057935]
[1761360057127,0.001,3931.8,3931.7,14.25041277]
[1761360060628,0.001,3931.8,3931.7,15.62368822]
[1761360064535,0.001,3931.8,3931.7,15.19238822]
[1761360065432,0.001,3931.8,3931.7,14.25311277]
[1761360066338,0.001,3931.8,3931.7,15.62368822]
[1761360070056,0.001,3931.8,3931.7,14.25311277]
[1761360076283,0.001,3931.8,3931.7,14.50781277]
[1761360076435,0.001,3931.8,3931.7,14.25311277]
[1761360080962,0.001,3931.8,3931.7,13.82181277]
[1761360081167,0.001,3931.8,3931.7,14.27971277]
[1761360086476,0.001,3931.8,3931.7,13.82181277]
[1761360088176,0.001,3931.8,3931.7,14.27971277]
[1761360088774,0.001,3932.2,3932.1,2.54317031]
[1761360088946,0.001,3932.2,3932.1,12.27763973]
[1761360089145,0.001,3932.2,3932.1,12.78451973]
[1761360089565,0.001,3932.2,3932.1,12.88634455]
[1761360102586,0.001,3932.2,3932.1,12.42844455]
[1761360104489,0.001,3932.2,3932.1,12.88574455]
[1761360106093,0.4352,3932.2,3932.1,9.02134455]
[1761360106302,0.4352,3932.2,3932.1,12.21034455]
[1761360106488,0.4352,3932.2,3932.1,13.58202508]
[1761360106693,0.4352,3932.2,3932.1,12.21034455]
[1761360110714,0.4352,3932.2,3932.1,12.95513737]
[1761360111916,0.001,3932.2,3932.1,5.29480016]
[1761360112214,0.4352,3932.2,3932.1,6.66648069]
[1761360114914,0.001,3932.2,3932.1,6.66648069]
[1761360117323,0.001,3932.2,3932.1,5.29480016]
[1761360124330,0.001,3932.2,3932.1,5.51190016]
[1761360124531,0.001,3932.2,3932.1,5.96570016]
[1761360131379,0.001,3932.2,3932.1,5.51190016]
[1761360132837,0.001,3932.2,3932.1,5.29480016]
[1761360141781,0.001,3932.2,3932.1,9.13480016]
[1761360152191,0.001,3932.2,3932.1,9.56470016]
[1761360152966,0.001,3932.2,3932.1,11.61279151]
[1761360155567,0.001,3932.2,3932.1,9.78170016]
[1761360156205,0.001,3932.2,3932.1,11.61279151]
[1761360156406,0.001,3932.2,3932.1,9.78170016]
[1761360156908,0.001,3932.2,3932.1,12.97070016]
[1761360157609,0.001,3932.2,3932.1,14.80179151]
[1761360157909,0.001,3932.2,3932.1,12.97070016]
[1761360160015,0.001,3932.2,3932.1,12.32380016]
[1761360160314,0.001,3932.2,3932.1,9.13480016]
[1761360160614,0.4352,3932.2,3932.1,12.32380016]
[1761360161019,0.4352,3932.2,3932.1,16.79513737]
[1761360163224,0.4352,3932.2,3932.1,13.60613737]
[1761360163425,0.4352,3932.2,3932.1,11.76145031]
[1761360164026,0.4352,3932.2,3932.1,7.01725031]
[1761360164228,0.4352,3932.2,3932.1,6.51037031]
[1761360164390,0.4352,3932.2,3932.1,7.42536684]
[1761360164904,0.4352,3932.2,3932.1,7.93224684]
[1761360165504,0.4352,3932.2,3932.1,4.09224684]
[1761360166015,0.4352,3932.2,3932.1,3.17725031]
[1761360166712,0.4352,3932.2,3932.1,2.67037031]
[1761360168039,0.4352,3932.2,3932.1,2.54317031]
[1761360172811,0.4352,3932.2,3932.1,6.2697173]
[1761360180910,0.4352,3932.2,3932.1,2.54317031]
[1761360186637,0.4352,3932.2,3932.1,2.98037031]
[1761360215816,0.001,3932.2,3932.1,2.98037031]
[1761360224819,0.4352,3932.2,3932.1,2.98037031]
[1761360225487,0.4352,3932.2,3932.1,2.54317031]
[1761360233636,0.4352,3932.2,3932.1,3.30703736]
[1761360241350,0.4352,3932.2,3931.8,0.002]
[1761360241527,0.001,3932.2,3932.1,2.54317031]
[1761360241734,0.1282,3932.2,3932.1,2.54317031]
[1761360242065,0.5624,3932.2,3932.1,2.54317031]
[1761360242554,0.5624,3932.2,3931.9,0.76392929]
[1761360242717,0.1282,3932.2,3932.0,2.54323499]
[1761360242918,0.001,3932.2,3932.1,10.11625993]
[1761360243146,0.001,3932.2,3932.1,11.22493818]
[1761360243329,0.001,3932.2,3932.1,10.85452999]
[1761360248224,0.001,3932.2,3932.1,12.22471408]
[1761360249357,0.001,3932.2,3932.1,10.85452999]
[1761360249551,0.001,3932.2,3932.1,12.22448327]
[1761360252955,0.001,3932.2,3932.1,12.35168327]
[1761360254335,0.001,3932.2,3932.1,10.98172999]
[1761360259680,0.001,3932.2,3932.1,12.35168327]
[1761360265392,0.001,3932.2,3932.1,10.98172999]
[1761360265569,0.001,3932.2,3932.1,12.35164398]
[1761360267290,0.001,3932.2,3932.1,10.98172999]
[1761360281288,0.001,3932.2,3932.1,14.82172999]
[1761360283807,0.001,3932.2,3932.1,14.14022999]
[1761360283987,0.4414,3932.2,3932.1,14.14022999]
[1761360284309,0.4414,3932.2,3932.1,9.6670685]
[1761360285382,0.001,3932.2,3932.1,9.6670685]
[1761360286398,0.4414,3932.2,3932.1,9.6670685]
[1761360287317,0.4414,3932.2,3932.1,5.8270685]
[1761360287825,0.001,3932.2,3932.1,5.8270685]
[1761360288008,0.4414,3932.2,3932.1,5.8270685]
[1761360293219,0.4414,3932.2,3932.1,5.06336674]
[1761360293615,0.001,3932.2,3932.1,5.06336674]
[1761360294830,0.001,3932.2,3932.1,8.78951746]
[1761360301511,0.4464,3932.2,3932.1,8.78951746]
[1761360301951,0.001,3932.2,3932.1,8.78951746]
[1761360305042,0.4464,3932.2,3932.1,8.78951746]
[1761360306730,0.001,3932.2,3932.1,8.78951746]
[1761360315821,0.4464,3932.2,3932.1,8.78951746]
[1761360316021,0.001,3932.2,3932.1,8.78951746]
[1761360325265,0.001,3932.2,3932.1,8.45860103]
[1761360330178,0.4464,3932.2,3932.1,8.45860103]
[1761360330349,0.001,3932.2,3932.1,8.45860103]
[1761360331686,0.4464,3932.2,3932.1,8.45860103]
[1761360333284,0.001,3932.2,3932.1,8.45860103]
[1761360333588,0.001,3932.2,3932.1,10.10553377]
[1761360335494,0.001,3932.2,3932.1,10.77383377]
[1761360335704,0.001,3932.2,3932.1,11.22023377]
[1761360338694,0.001,3932.2,3932.1,10.76903377]
[1761360338871,0.001,3932.2,3932.1,10.55193377]
[1761360352105,0.4491,3932.2,3932.1,13.29253377]
[1761360352311,0.4491,3932.2,3932.1,11.64560103]
[1761360352682,0.001,3932.2,3932.1,11.64560103]
[1761360353814,0.001,3932.2,3932.1,12.09370103]
[1761360356022,0.001,3932.2,3932.1,12.77250103]
[1761360356207,0.001,3932.2,3932.1,14.48738377]
[1761360356719,0.001,3932.2,3932.1,15.2314184]
[1761360360738,0.001,3932.6,3932.5,3.04979163]
[1761360360909,0.001,3932.6,3932.5,10.73240609]
[1761360361236,0.001,3932.6,3932.5,12.77517238]
[1761360361434,0.001,3932.6,3932.5,12.87698165]
[1761360361827,0.001,3932.6,3932.5,13.1780284]
[1761360362338,0.001,3932.6,3932.5,15.00615726]
[1761360362954,0.001,3934.9,3934.2,2.54181282]
[1761360363115,0.001,3934.9,3934.2,12.26107817]
[1761360363322,0.001,3934.9,3934.2,14.10024293]
[1761360363637,0.001,3934.9,3934.2,14.20200946]
[1761360363841,0.001,3934.9,3934.2,14.57806496]
[1761360364346,0.001,3934.9,3934.2,13.2098002]
[1761360365417,0.001,3934.9,3934.2,14.12018197]
[1761360367352,0.001,3934.9,3934.2,13.2098002]
[1761360368429,0.001,3934.7,3934.2,13.2098002]
[1761360369664,0.001,3934.7,3934.2,12.7389002]
[1761360370232,0.4325,3934.5,3934.2,12.7389002]
[1761360370671,0.4325,3934.5,3934.2,12.8661002]
[1761360371255,0.001,3934.5,3934.2,12.8661002]
[1761360371470,0.4325,3934.5,3934.2,12.8661002]
[1761360371974,0.4325,3934.5,3934.2,13.54704771]
[1761360372465,0.4325,3934.5,3934.2,12.8661002]
[1761360373469,0.4325,3934.5,3934.2,16.7061002]
[1761360375572,0.001,3934.5,3934.2,12.8731002]
[1761360375777,0.001,3934.5,3934.2,13.55377341]
[1761360376574,0.001,3934.5,3934.2,13.55379072]
[1761360376959,0.4325,3934.5,3934.2,13.55379072]
[1761360377157,0.001,3934.5,3934.2,13.55379072]
[1761360377358,0.4325,3934.3,3934.2,12.8731002]
[1761360377878,0.001,3934.5,3934.4,3.04856361]
[1761360378179,0.001,3934.5,3934.4,3.07398044]
[1761360378380,0.001,3934.5,3934.4,3.54198044]
[1761360378577,0.001,3934.5,3934.4,3.64373791]
[1761360382486,0.001,3934.5,3934.4,4.55411968]
[1761360382685,0.001,3934.5,3934.4,6.05473541]
[1761360382980,0.001,3934.5,3934.4,7.58451858]
[1761360384883,0.001,3934.5,3934.4,6.67413681]
[1761360386382,0.001,3934.5,3934.4,8.04240157]
[1761360386586,0.001,3934.5,3934.4,6.67413681]
[1761360388019,0.001,3934.5,3934.4,6.80133681]
[1761360388487,0.001,3934.5,3934.4,10.64133681]
[1761360390501,0.4506,3935.1,3935.0,3.04817606]
[1761360390502,0.001,3935.1,3935.0,3.04817606]
[1761360390662,0.001,3935.1,3935.0,13.63635899]
[1761360391196,0.001,3935.1,3935.0,13.73811258]
[1761360391372,0.001,3935.1,3935.0,12.370315]
[1761360391696,0.001,3935.1,3935.0,13.86148405]
[1761360392116,0.4483,3935.1,3935.0,15.23007914]
[1761360392309,0.4483,3935.1,3935.0,13.86148405]
[1761360392917,0.6755,3936.3,3936.2,2.54052131]
[1761360393228,0.2225,3936.3,3936.2,2.54052131]
[1761360393591,0.6657,3936.3,3936.2,3.22144588]
[1761360401219,0.6657,3936.3,3936.2,0.68092457]
[1761360401621,1.11349782,3936.3,3936.2,0.68092457]
[1761360402205,0.7929,3936.3,3935.8,2.54076771]
[1761360402405,0.1272,3936.1,3935.8,3.30392744]
[1761360402606,0.1272,3936.1,3935.9,2.54071464]
[1761360402911,0.4282,3936.0,3935.9,2.96891464]
[1761360403226,0.4282,3936.0,3935.9,2.54071464]
[1761360403728,0.4282,3936.0,3935.9,2.96891464]
[1761360413744,0.4282,3936.0,3935.9,2.54071464]
[1761360415482,0.1272,3936.1,3936.0,3.0475304]
[1761360415677,0.001,3936.3,3936.2,3.04740131]
[1761360416329,0.4292,3936.3,3936.2,3.04740131]
[1761360418547,0.4292,3936.3,3936.2,2.54052131]
[1761360422168,0.4292,3936.3,3936.1,2.54053785]
[1761360422356,0.4292,3936.3,3936.0,0.68484505]
[1761360422357,0.4292,3936.3,3936.0,2.54060531]
[1761360423070,0.4292,3936.3,3935.9,0.68484505]
[1761360423252,0.4292,3936.3,3936.0,2.54059011]
[1761360423967,0.4292,3936.3,3936.1,2.54057273]
[1761360424570,0.81435,3936.3,3936.1,2.54057273]
[1761360424768,0.81435,3936.3,3935.8,0.68484505]
[1761360425077,0.231,3935.9,3935.4,3.22587799]
[1761360425238,0.231,3935.9,3935.5,2.54095629]
[1761360425437,0.4345,3935.8,3935.5,2.54095629]
[1761360425658,0.5617,3935.8,3935.5,2.54095629]
[1761360426070,0.4345,3935.7,3935.5,2.54095629]
[1761360426452,0.4345,3935.7,3935.4,2.54098193]
[1761360427072,0.4345,3935.7,3935.3,2.54309197]
[1761360427275,0.1272,3935.6,3935.3,2.54309197]
[1761360427642,0.4345,3935.5,3935.3,2.54309197]
[1761360427973,0.4345,3935.5,3935.4,2.54103775]
[1761360428876,0.4345,3935.5,3935.3,2.5430388]
[1761360429580,0.4345,3935.5,3935.3,0.002]
[1761360430885,0.4345,3935.5,3935.3,2.54309661]
[1761360435087,0.4345,3935.5,3935.3,0.002]
[1761360437603,0.4345,3935.5,3935.3,2.54309282]
[1761360439297,0.1272,3935.6,3935.3,0.002]
[1761360439480,0.5596,3935.6,3935.4,2.54101626]
[1761360439685,0.5596,3935.6,3935.5,2.54097319]
[1761360440107,0.4324,3935.5,3935.4,2.54101842]
[1761360445021,0.1272,3935.6,3935.4,2.54101842]
[1761360446208,0.5596,3935.6,3935.4,2.54101842]
[1761360446427,0.1272,3935.6,3935.4,2.54101842]
[1761360446631,0.4324,3935.5,3935.3,2.54305743]
[1761360446935,0.4324,3935.5,3935.3,0.002]
[1761360447297,0.1272,3935.4,3935.3,0.002]
[1761360447843,0.5596,3935.4,3935.3,0.002]
[1761360453904,3.7546,3935.4,3935.3,0.002]
[1761360454302,6.29563775,3935.4,3935.3,0.002]
[1761360454510,7.85083775,3935.4,3935.3,0.002]
[1761360454832,9.29960312,3935.4,3935.3,0.002]
[1761360472662,9.30060312,3935.4,3935.3,0.002]
[1761360481317,3.00496537,3935.4,3935.3,0.002]
[1761360481586,3.3212,3935.4,3935.3,0.445]
[1761360491382,3.3212,3935.4,3935.3,0.002]
[1761360495698,3.3212,3935.4,3935.3,0.4375]
[1761360497217,3.3212,3935.4,3935.3,2.97860233]
[1761360502800,3.3212,3935.4,3935.3,0.002]
[1761360504127,3.3212,3935.4,3935.3,2.97860233]
[1761360504308,0.001,3935.4,3935.3,3.35280752]
[1761360504632,0.001,3935.4,3935.3,5.6631468]
[1761360506091,0.001,3935.4,3935.3,4.75002007]
[1761360508268,0.001,3935.4,3935.3,6.33063109]
[1761360508444,0.001,3935.4,3935.3,6.30522007]
[1761360513470,0.001,3935.4,3935.3,7.67136002]
[1761360518555,0.001,3935.4,3935.3,10.86136002]
[1761360519068,0.001,3935.4,3935.3,9.49522007]
[1761360519465,0.001,3935.4,3935.3,6.30522007]
[1761360519680,0.001,3935.4,3935.3,10.40556605]
[1761360522541,0.001,3935.4,3935.3,11.67692229]
[1761360522746,0.001,3935.4,3935.3,13.95657631]
[1761360524171,0.001,3935.4,3935.3,14.86692229]
[1761360527293,0.001,3935.4,3935.3,13.95657631]
[1761360532287,0.001,3935.4,3935.3,13.52737631]
[1761360532695,0.001,3935.4,3935.3,3.94031488]
[1761360532898,0.001,3935.4,3935.3,8.04199777]
[1761360534210,0.001,3935.4,3935.3,7.12931488]
[1761360536287,0.001,3935.4,3935.3,7.55851488]
[1761360536802,0.001,3935.4,3935.3,4.36951488]
[1761360537920,0.001,3935.4,3935.3,5.73565483]
[1761360538585,0.001,3935.4,3935.3,7.56086909]
[1761360538904,0.001,3935.4,3935.3,11.27951493]
[1761360541319,0.001,3935.4,3935.3,13.1057684]
[1761360542525,0.001,3935.4,3935.3,11.27951493]
[1761360542734,0.001,3935.4,3935.3,14.46851493]
[1761360545030,0.001,3935.4,3935.3,13.99651493]
[1761360545225,0.001,3935.4,3935.3,14.46851493]
[1761360546433,0.001,3935.4,3935.3,13.70538238]
[1761360549929,0.001,3935.4,3935.3,10.04438238]
[1761360550245,0.001,3935.4,3935.3,13.66258238]
[1761360552023,0.001,3935.4,3935.3,13.23438238]
[1761360552810,0.001,3935.4,3935.3,10.04438238]
[1761360553001,0.001,3935.4,3935.3,13.23438238]
[1761360572752,0.4531,3935.4,3935.3,8.45102817]
[1761360573249,0.4531,3935.4,3935.3,11.63902817]
[1761360581660,0.4531,3935.4,3935.3,8.45102817]
[1761360581946,0.4531,3935.4,3935.3,11.63902817]
[1761360582155,0.001,3935.4,3935.3,11.63902817]
[1761360583586,0.001,3935.4,3935.3,8.45102817]
[1761360583762,0.001,3935.4,3935.3,11.63902817]
[1761360583958,0.001,3935.4,3935.3,8.45102817]
[1761360584278,0.001,3935.4,3935.3,11.63902817]
[1761360600677,0.001,3935.4,3935.3,12.38395226]
[1761360601596,0.001,3935.4,3935.3,14.57191594]
[1761360601924,0.001,3935.4,3935.3,16.39816941]
[1761360602077,0.001,3935.4,3935.3,16.49991472]
[1761360605695,0.001,3935.4,3935.3,14.67366125]
[1761360610912,0.001,3935.4,3935.3,18.51366125]
[1761360615101,0.001,3935.4,3935.3,20.34091738]
[1761360616604,0.001,3935.4,3935.3,16.68671738]
[1761360616820,0.001,3935.4,3935.3,19.87471738]
[1761360617017,0.001,3935.4,3935.3,20.31991738]
[1761360618232,0.001,3935.4,3935.3,16.68671738]
[1761360618545,0.001,3935.4,3935.3,19.87471738]
[1761360619713,0.001,3935.4,3935.3,16.03471738]
[1761360623148,0.001,3935.4,3935.3,11.57114745]
[1761360623348,0.001,3935.4,3935.3,16.03471738]
[1761360624129,0.001,3935.4,3935.3,14.20746125]
[1761360624449,0.4149,3935.4,3935.3,14.20746125]
[1761360625850,0.4149,3935.4,3935.3,18.04746125]
[1761360628637,0.001,3935.4,3935.3,18.04746125]
[1761360630057,0.4149,3935.4,3935.3,18.04746125]
[1761360630558,0.4149,3935.4,3935.3,17.94571594]
[1761360632157,0.4149,3935.4,3935.3,14.75771594]
[1761360632367,0.4149,3935.4,3935.3,17.94571594]
[1761360633061,0.001,3935.4,3935.3,17.94571594]
[1761360633660,0.001,3935.4,3935.3,19.77297207]
[1761360633862,0.001,3935.4,3935.3,20.21817207]
[1761360634948,0.001,3935.4,3935.3,19.77297207]
[1761360635152,0.001,3935.4,3935.3,17.94571594]
[1761360639873,0.001,3935.4,3935.3,19.77297207]
[1761360643568,0.001,3935.4,3935.3,15.93297207]
[1761360644073,0.001,3935.4,3935.3,14.10571594]
[1761360644474,0.001,3935.4,3935.3,15.93297207]
[1761360644867,0.4149,3935.4,3935.3,15.93297207]
[1761360645065,0.001,3935.4,3935.3,15.93297207]
[1761360646674,0.001,3935.4,3935.3,16.39837207]
[1761360646979,0.001,3935.4,3935.3,14.98601594]
[1761360652391,0.001,3935.9,3935.8,2.54077951]
[1761360652564,0.001,3935.9,3935.8,12.38062944]
[1761360652765,0.001,3935.9,3935.8,12.84602944]
[1761360653194,0.001,3935.9,3935.8,12.94775741]
[1761360654274,0.001,3935.9,3935.8,12.48235741]
[1761360654592,0.001,3935.9,3935.8,14.16759591]
[1761360659379,0.001,3935.9,3935.8,14.59629591]
[1761360661297,0.1272,3937.3,3935.8,14.59629591]
[1761360661298,0.4287,3937.3,3936.5,3.0472077]
[1761360661499,0.1272,3937.8,3936.5,7.94201097]
[1761360661687,0.4266,3937.0,3936.5,9.43104664]
[1761360662413,0.4266,3937.0,3936.5,9.85764664]
[1761360662593,0.2403,3938.0,3936.5,10.28634664]
[1761360662795,0.4266,3937.3,3936.5,14.00259032]
[1761360664682,0.4266,3937.2,3936.5,14.00259032]
[1761360667514,0.2403,3938.0,3936.5,14.00259032]
[1761360667515,0.4266,3937.4,3936.5,14.00259032]
[1761360668285,0.1131,3938.0,3936.5,14.00259032]
[1761360668528,0.4266,3937.4,3936.5,14.00259032]
[1761360668729,0.4266,3937.5,3936.5,14.00259032]
[1761360669233,0.1131,3938.0,3936.5,14.00259032]
[1761360669389,0.4266,3937.8,3936.5,14.00259032]
[1761360669588,0.4266,3937.6,3936.5,14.00259032]
[1761360670166,0.1131,3938.0,3937.9,3.04630456]
[1761360670316,0.5397,3938.0,3937.9,6.36050456]
[1761360671267,0.5397,3938.0,3937.9,10.07674824]
[1761360682266,0.7632,3938.2,3938.1,4.60137559]
[1761360684684,0.7632,3938.2,3938.1,5.28287624]
[1761360688385,0.7632,3938.2,3938.1,4.60137559]
[1761360689387,0.7642,3938.2,3938.1,4.60137559]
[1761360692400,0.7642,3938.2,3938.1,4.72857559]
[1761360693106,0.301,3938.2,3938.1,7.32337011]
[1761360693478,0.301,3938.2,3938.1,8.08586841]
[1761360693678,0.301,3938.2,3938.1,7.17631239]
[1761360694276,1e-08,3938.2,3938.1,7.62961239]
[1761360694484,1e-08,3938.2,3938.1,8.99394642]
[1761360696726,1e-08,3938.2,3938.1,8.54064642]
[1761360697010,0.46070001,3938.2,3938.1,13.7576516]
[1761360698711,1e-08,3938.2,3938.1,13.7576516]
[1761360698921,1e-08,3938.2,3938.1,16.63506125]
[1761360699091,1e-08,3938.2,3938.1,18.80919976]
[1761360699415,1e-08,3938.2,3938.1,20.94406219]
[1761360699835,0.001,3938.6,3938.5,6.76216138]
[1761360700126,0.001,3938.6,3938.5,11.50736138]
[1761360700283,0.001,3938.6,3938.5,11.95116138]
[1761360700480,0.001,3938.6,3938.5,12.25116138]
[1761360700726,0.001,3938.6,3938.5,13.31597639]